bitfinex/quotes_SOLUSD_20250602
["timestamp","ask_amount","ask_price","bid_price","bid_amount"]
[1748893394471,19.07613357,152.04,152.03,10.0]
[1748893394670,0.42648471,152.03,152.02,10.0]
[1748893394880,24.02604631,152.03,152.02,10.0]
[1748893395681,42.67569517,152.03,152.02,10.0]
[1748893395865,42.67569517,152.03,152.01,10.0]
[1748893396073,24.02604631,152.02,152.01,10.0]
[1748893396471,24.02604631,152.02,152.0,16.57885799]
[1748893397258,24.02604631,152.02,152.01,10.0]
[1748893398288,24.02604631,152.02,152.01,16.57851457]
[1748893399869,24.02604631,152.02,152.01,6.57851457]
[1748893400065,24.02604631,152.02,152.01,16.57851457]
[1748893402887,0.42648471,152.02,152.01,16.57851457]
[1748893403095,24.02604631,152.02,152.01,16.57851457]
[1748893403902,41.9,152.05,152.04,10.0]
[1748893404099,42.67569517,152.05,152.04,10.0]
[1748893404303,3.71571671,152.07,152.06,10.0]
[1748893404482,3.71571671,152.09,152.08,10.0]
[1748893404811,3.71571671,152.12,152.09,10.0]
[1748893404988,53.5995616,152.1,152.09,10.0]
[1748893405187,72.67569517,152.1,152.09,10.0]
[1748893405384,42.24921046,152.1,152.09,10.0]
[1748893405581,42.67569517,152.1,152.09,10.0]
[1748893406886,0.28432314,152.1,152.09,16.57505424]
[1748893407218,0.14216157,152.1,152.09,16.57505424]
[1748893407415,23.5995616,152.11,152.09,16.57505424]
[1748893408081,24.02604631,152.11,152.1,16.57462195]
[1748893408282,24.02604631,152.11,152.1,6.57462195]
[1748893408476,24.02604631,152.11,152.1,16.57462195]
[1748893409011,3.71665999,152.13,152.1,16.57462195]
[1748893409183,53.77545916,152.14,152.13,10.0]
[1748893409503,54.20194387,152.14,152.13,10.0]
[1748893410290,54.20194387,152.14,152.13,16.57332544]
[1748893411200,35.55229501,152.14,152.13,16.57332544]
[1748893411398,11.5262487,152.14,152.13,16.57332544]
[1748893412808,7.26808288,152.16,152.13,56.60620065]
[1748893413012,146.4,152.14,152.13,56.60620065]
[1748893414229,146.4,152.14,152.13,33.00663905]
[1748893415452,146.4,152.14,152.13,10.0]
[1748893415746,0.42648471,152.13,152.12,10.0]
[1748893416040,24.02604631,152.13,152.12,10.0]
[1748893423631,24.02604631,152.13,152.12,16.57375755]
[1748893424018,24.02604631,152.13,152.12,10.0]
[1748893424222,24.02604631,152.13,152.12,16.57375755]
[1748893424535,24.02604631,152.13,152.12,10.0]
[1748893426424,24.02604631,152.13,152.12,16.57375755]
[1748893427036,24.02604631,152.13,152.12,10.0]
[1748893429832,0.42648471,152.11,152.1,10.0]
[1748893430010,24.02604631,152.11,152.09,10.0]
[1748893430528,0.42648471,152.11,152.1,10.0]
[1748893430834,124.96905094,152.15,152.12,10.0]
[1748893430835,24.02604631,152.13,152.12,10.0]
[1748893431734,42.67569517,152.13,152.12,10.0]
[1748893433845,24.02604631,152.13,152.12,10.0]
[1748893435727,24.02604631,152.13,152.12,16.57375755]
[1748893435947,24.02604631,152.13,152.12,10.0]
[1748893437263,42.67569517,152.13,152.12,10.0]
[1748893437447,0.14216157,152.11,152.1,10.0]
[1748893437622,42.39137203,152.11,152.1,10.0]
[1748893437826,42.39137203,152.11,152.09,10.0]
[1748893437827,0.28432314,152.1,152.09,10.0]
[1748893438043,24.02604631,152.1,152.09,10.0]
[1748893438325,24.02604631,152.1,152.09,16.57505424]
[1748893439350,48.05306429,152.14,152.11,10.0]
[1748893439531,42.67569517,152.12,152.11,10.0]
[1748893440555,24.02604631,152.12,152.11,10.0]
[1748893440925,23.5995616,152.12,152.11,10.0]
[1748893441131,23.5995616,152.13,152.11,10.0]
[1748893441335,23.5995616,152.14,152.13,16.57332544]
[1748893441747,24.02604631,152.14,152.13,16.57332544]
[1748893442065,24.02604631,152.14,152.13,10.0]
[1748893447263,0.42648471,152.14,152.13,16.57332544]
[1748893447562,31.12861254,152.15,152.14,10.0]
[1748893448359,31.55509725,152.15,152.14,10.0]
[1748893450363,23.5995616,152.15,152.14,16.57289338]
[1748893451869,24.02604631,152.15,152.14,10.0]
[1748893452974,24.02604631,152.15,152.13,10.0]
[1748893453155,23.5995616,152.14,152.13,10.0]
[1748893454282,24.02604631,152.14,152.13,10.0]
[1748893454660,42.67569517,152.14,152.13,10.0]
[1748893455869,0.42648471,152.12,152.11,10.0]
[1748893456054,45.103692,152.12,152.09,10.0]
[1748893456260,24.02604631,152.1,152.09,10.0]
[1748893457077,0.42648471,152.1,152.09,10.0]
[1748893457259,24.02604631,152.1,152.09,10.0]
[1748893457463,24.02604631,152.1,152.09,16.57505424]
[1748893458490,26.45468905,152.1,152.09,16.57505424]
[1748893458667,24.02604631,152.1,152.09,16.57505424]
[1748893459169,26.02832314,152.1,152.09,16.57505424]
[1748893459477,24.02604631,152.12,152.11,16.57418973]
[1748893459671,23.88388474,152.12,152.11,16.57418973]
[1748893460083,23.5995616,152.12,152.11,16.57418973]
[1748893460280,23.5995616,152.13,152.11,16.57418973]
[1748893460584,23.5995616,152.13,152.12,10.0]
[1748893460781,23.88388474,152.13,152.12,10.0]
[1748893460960,24.02604631,152.13,152.12,10.0]
[1748893461164,26.45469099,152.13,152.12,10.0]
[1748893461382,24.02604631,152.13,152.12,10.0]
[1748893461590,26.45452641,152.13,152.12,10.0]
[1748893461766,24.02604631,152.13,152.12,10.0]
[1748893461967,26.4544532,152.13,152.12,10.0]
[1748893462166,26.45453791,152.13,152.12,10.0]
[1748893462587,26.44909994,152.13,152.12,10.0]
[1748893462886,24.02604631,152.13,152.12,10.0]
[1748893463094,42.67569517,152.13,152.12,10.0]
[1748893463265,0.42648471,152.12,152.11,10.0]
[1748893463692,24.02604631,152.12,152.11,10.0]
[1748893463886,23.5995616,152.13,152.11,16.57418973]
[1748893464092,0.42648471,152.13,152.12,10.0]
[1748893464295,24.02604631,152.13,152.12,10.0]
[1748893464702,26.44892344,152.13,152.12,10.0]
[1748893464911,26.44894728,152.13,152.12,10.0]
[1748893465095,24.02604631,152.13,152.12,10.0]
[1748893465284,24.02604631,152.13,152.12,16.57375755]
[1748893465487,26.02244535,152.13,152.12,16.57375755]
[1748893465710,33.8057389,152.14,152.12,16.57375755]
[1748893465891,34.23222361,152.14,152.13,10.0]
[1748893467791,55.30469388,152.14,152.13,10.0]
[1748893467985,55.30469388,152.14,152.12,10.0]
[1748893467986,19.07613357,152.13,152.12,10.0]
[1748893468306,19.07613357,152.12,152.09,10.0]
[1748893468478,24.02604631,152.1,152.09,10.0]
[1748893468683,18.64964886,152.09,152.07,10.0]
[1748893468900,24.02604631,152.08,152.07,10.0]
[1748893469104,26.44800845,152.08,152.06,16.57634502]
[1748893469303,146.82648471,152.08,152.07,10.0]
[1748893469521,170.42604631,152.08,152.07,10.0]
[1748893470515,146.82648471,152.08,152.07,10.0]
[1748893470685,170.42604631,152.08,152.07,10.0]
[1748893471731,146.4,152.08,152.07,16.57591898]
[1748893472112,169.9995616,152.08,152.07,16.57591898]
[1748893474237,169.91281422,152.08,152.07,16.57591898]
[1748893475228,24.02604631,152.08,152.06,10.0]
[1748893475409,23.5995616,152.07,152.06,10.0]
[1748893475613,23.5995616,152.07,152.06,16.57635144]
[1748893475836,24.02604631,152.08,152.07,10.0]
[1748893476131,26.44793393,152.08,152.07,10.0]
[1748893476341,24.02604631,152.08,152.07,10.0]
[1748893476821,0.42648471,152.11,152.09,10.0]
[1748893477024,18.64964886,152.1,152.09,10.0]
[1748893477224,0.42648471,152.11,152.07,6.57569459]
[1748893477225,146.4,152.11,152.1,10.0]
[1748893478723,146.4,152.11,152.1,16.57462195]
[1748893478930,146.4,152.11,152.1,40.17418355]
[1748893479646,146.4,152.11,152.1,81.29418355]
[1748893480430,146.4,152.11,152.1,57.69462195]
[1748893482852,146.4,152.11,152.1,81.29418355]
[1748893483543,146.4,152.11,152.1,57.69462195]
[1748893485224,146.4,152.11,152.1,81.29418355]
[1748893488354,146.4,152.11,152.1,57.69462195]
[1748893488555,146.4,152.11,152.1,16.57462195]
[1748893489882,146.82648471,152.1,152.09,10.0]
[1748893490066,172.42246567,152.1,152.08,10.0]
[1748893490267,23.5995616,152.09,152.08,10.0]
[1748893492078,23.5995616,152.09,152.07,27.5556276]
[1748893492399,23.5995616,152.08,152.07,27.5556276]
[1748893498229,23.5995616,152.09,152.08,10.0]
[1748893499229,146.4,152.1,152.09,10.0]
[1748893499389,146.4,152.1,152.09,50.96]
[1748893500419,169.9995616,152.1,152.09,10.0]
[1748893503342,170.42604631,152.1,152.08,10.0]
[1748893503503,169.9995616,152.09,152.08,10.0]
[1748893503818,170.42604631,152.09,152.08,10.0]
[1748893504329,165.47613357,152.08,152.07,10.0]
[1748893504503,189.07569517,152.08,152.07,10.0]
[1748893505317,189.07569517,152.08,152.06,10.0]
[1748893505509,189.07569517,152.08,152.07,10.0]
[1748893506425,195.65122935,152.08,152.06,10.0]
[1748893506623,0.42648471,152.06,152.05,10.0]
[1748893506805,24.02604631,152.06,152.05,10.0]
[1748893507501,24.02604631,152.06,152.05,16.57678395]
[1748893507502,23.5995616,152.06,152.05,16.57678395]
[1748893508117,23.5995616,152.06,152.03,10.0]
[1748893508118,146.82648471,152.05,152.03,10.0]
[1748893508322,169.9995616,152.04,152.03,10.0]
[1748893508526,169.9995616,152.04,152.03,16.57751916]
[1748893510512,169.9995616,152.04,152.03,10.0]
[1748893510707,165.04964886,152.03,152.02,10.0]
[1748893510926,188.64921046,152.03,152.02,10.0]
[1748893512435,191.06372137,152.03,152.02,10.0]
[1748893513335,172.41407251,152.03,152.02,10.0]
[1748893513550,172.41407251,152.03,152.02,16.57808183]
[1748893513730,148.81451091,152.03,152.02,16.57808183]
[1748893513926,148.81451091,152.03,152.02,81.09764343]
[1748893515109,148.81451091,152.03,152.02,57.49808183]
[1748893516825,172.41407251,152.03,152.02,16.57808183]
[1748893517129,172.41407251,152.03,152.02,10.0]
[1748893517311,172.41407251,152.03,152.02,16.57808183]
[1748893517743,148.81451091,152.03,152.02,16.57808183]
[1748893518826,148.81451091,152.03,152.02,57.43808183]
[1748893520925,2.41451091,152.03,152.02,57.43808183]
[1748893522616,2.41451091,152.03,152.02,16.57808183]
[1748893533482,26.44055722,152.03,152.02,10.0]
[1748893533775,56.44055722,152.03,152.02,10.0]
[1748893534685,56.44055722,152.03,152.01,10.0]
[1748893534686,146.82648471,152.02,152.01,10.0]
[1748893534884,54.02604631,152.02,152.01,10.0]
[1748893536096,60.60416776,152.02,151.98,10.0]
[1748893536298,176.4,152.01,152.0,10.0]
[1748893536495,199.9995616,152.01,152.0,10.0]
[1748893537186,199.9995616,152.01,151.96,10.4519401]
[1748893537187,165.04964886,152.0,151.96,10.4519401]
[1748893537383,23.5995616,151.97,151.96,10.4519401]
[1748893539003,23.5995616,151.97,151.96,17.03261922]
[1748893539785,23.5995616,151.98,151.97,10.0]
[1748893540510,53.5995616,151.98,151.97,10.0]
[1748893541395,53.5995616,151.98,151.97,16.5802461]
[1748893541909,54.0995616,151.98,151.97,16.5802461]
[1748893544603,24.0995616,151.98,151.97,16.5802461]
[1748893544814,24.0995616,151.98,151.97,6.5802461]
[1748893544986,24.0995616,151.98,151.97,16.5802461]
[1748893549928,0.5,151.98,151.97,80.9798077]
[1748893550136,146.4,152.0,151.99,10.0]
[1748893550796,170.42604631,152.0,151.99,10.0]
[1748893551994,170.92604631,152.0,151.99,10.0]
[1748893552193,170.42604631,152.0,151.99,10.0]
[1748893552887,170.42604631,152.0,151.99,16.57938022]
[1748893554299,169.9995616,152.0,151.99,16.57938022]
[1748893557099,170.42604631,152.0,151.97,10.0]
[1748893557305,23.5995616,151.98,151.97,10.0]
[1748893557595,0.42648471,151.99,151.98,10.0]
[1748893557812,24.02604631,151.99,151.98,10.0]
[1748893560000,146.82648471,151.98,151.97,10.0]
[1748893560322,170.42604631,151.98,151.97,10.0]
[1748893561109,170.92604631,151.98,151.97,10.0]
[1748893561317,170.92604631,151.98,151.96,10.4519401]
[1748893561524,23.5995616,151.97,151.96,10.4519401]
[1748893561704,42.67569517,151.97,151.96,0.4519401]
[1748893562096,72.67569517,151.97,151.96,0.4519401]
[1748893562317,105.65510789,151.97,151.96,0.4519401]
[1748893562696,109.34819088,151.97,151.96,0.4519401]
[1748893563119,109.34819088,151.97,151.92,10.0]
[1748893563120,69.07613357,151.96,151.92,10.0]
[1748893563322,24.02604631,151.93,151.92,10.0]
[1748893564216,54.02604631,151.93,151.92,10.0]
[1748893573028,72.67569517,151.93,151.92,10.0]
[1748893573227,79.25767371,151.93,151.92,10.0]
[1748893573531,72.67569517,151.93,151.92,10.0]
[1748893574212,72.67569517,151.93,151.91,10.0]
[1748893574528,53.5995616,151.92,151.91,10.0]
[1748893575525,19.07613357,151.91,151.9,10.0]
[1748893575843,19.07613357,151.91,151.9,16.58327847]
[1748893575844,24.02604631,151.91,151.9,16.58327847]
[1748893576141,30.0,151.91,151.9,16.58327847]
[1748893576813,53.5995616,151.91,151.9,10.0]
[1748893577221,23.5995616,151.91,151.9,16.58327847]
[1748893577840,32.97941272,151.94,151.93,10.0]
[1748893578018,56.57897432,151.94,151.93,10.0]
[1748893578647,56.57897432,151.94,151.92,10.0]
[1748893578966,0.42648471,151.93,151.92,10.0]
[1748893579450,32.97941272,151.94,151.93,10.0]
[1748893579739,32.97941272,151.94,151.93,16.58197854]
[1748893580935,32.97941272,151.94,151.93,41.69664014]
[1748893581236,146.4,152.01,152.0,10.0]
[1748893581451,2.41451091,152.03,152.02,10.0]
[1748893581741,2.41451091,152.03,152.02,16.57808183]
[1748893582036,26.44055722,152.03,152.02,10.0]
[1748893583047,0.42648471,152.02,152.01,10.0]
[1748893583343,24.02604631,152.02,152.01,10.0]
[1748893584145,24.02604631,152.02,152.01,16.57851457]
[1748893584922,24.02604631,152.02,152.01,10.0]
[1748893585841,24.02604631,152.02,152.0,16.57893107]
[1748893586015,23.5995616,152.01,152.0,10.0]
[1748893586954,23.5995616,152.01,152.0,16.57894736]
[1748893587427,0.42648471,152.02,152.01,10.0]
[1748893587428,24.02604631,152.02,152.01,10.0]
[1748893587627,0.42648471,152.02,152.01,10.0]
[1748893587830,26.44055722,152.03,152.02,10.0]
[1748893588312,26.44055722,152.03,152.02,16.57808183]
[1748893589335,2.41451091,152.03,152.02,16.57808183]
[1748893590325,2.41451091,152.03,152.02,40.17764343]
[1748893591968,0.74791091,152.03,152.02,48.09834343]
[1748893592324,23.5995616,152.11,152.1,10.0]
[1748893592524,24.02604631,152.11,152.1,10.0]
[1748893592927,24.0995616,152.13,152.12,10.0]
[1748893593130,24.52604631,152.13,152.12,10.0]
[1748893593345,24.0995616,152.13,152.12,10.0]
[1748893594052,24.52604631,152.13,152.12,10.0]
[1748893594347,24.0995616,152.13,152.12,10.0]
[1748893594555,43.17569517,152.13,152.08,10.0]
[1748893594743,0.42648471,152.11,152.09,10.0]
[1748893594930,0.42648471,152.11,152.1,10.0]
[1748893595950,0.42648471,152.11,152.1,16.57462195]
[1748893596360,24.02604631,152.12,152.11,10.0]
[1748893596578,23.5995616,152.12,152.11,10.0]
[1748893596731,0.5,152.13,152.12,10.0]
[1748893597847,0.5,152.13,152.12,16.57375755]
[1748893600062,169.9995616,152.17,152.12,97.40771304]
[1748893600364,169.9995616,152.17,152.16,10.0]
[1748893600534,170.42604631,152.17,152.16,10.0]
[1748893600958,0.42648471,152.16,152.15,10.0]
[1748893601254,24.02604631,152.16,152.14,10.0]
[1748893601430,24.02604631,152.15,152.14,10.0]
[1748893602355,0.42648471,152.14,152.13,10.0]
[1748893602525,24.02604631,152.14,152.13,10.0]
[1748893602954,23.5995616,152.14,152.13,16.57332544]
[1748893603166,24.02604631,152.15,152.14,10.0]
[1748893603335,23.5995616,152.15,152.14,10.0]
[1748893603533,23.5995616,152.16,152.15,10.0]
[1748893604046,23.5995616,152.16,152.15,16.57246138]
[1748893604739,146.82648471,152.17,152.16,10.0]
[1748893605034,170.42604631,152.17,152.16,10.0]
[1748893605235,169.9995616,152.17,152.16,10.0]
[1748893606138,169.9995616,152.17,152.16,16.57202944]
[1748893606332,23.5995616,152.18,152.17,10.0]
[1748893606533,146.4,152.21,152.2,10.0]
[1748893606763,170.42604631,152.21,152.2,10.0]
[1748893607054,23.5995616,152.22,152.21,10.0]
[1748893607555,146.4,152.25,152.22,10.0]
[1748893607758,23.5995616,152.24,152.22,10.0]
[1748893607963,56.56685789,152.28,152.23,10.0]
[1748893608278,18.64964886,152.27,152.24,10.0]
[1748893608971,0.42648471,152.26,152.24,10.0]
[1748893609459,23.74172317,152.25,152.22,10.0]
[1748893609658,23.74172317,152.23,152.22,10.0]
[1748893611843,24.02604631,152.23,152.22,10.0]
[1748893612751,0.42648471,152.23,152.22,10.0]
[1748893612947,24.02604631,152.23,152.22,10.0]
[1748893613464,26.0,152.28,152.24,10.0]
[1748893613840,23.74172317,152.25,152.24,10.0]
[1748893615638,0.14216157,152.27,152.24,16.56857593]
[1748893615845,23.74172317,152.26,152.25,10.0]
[1748893616661,23.74172317,152.26,152.18,10.0]
[1748893616662,0.28432314,152.23,152.18,10.0]
[1748893616961,24.02604631,152.19,152.17,10.0]
[1748893617171,23.74172317,152.18,152.17,10.0]
[1748893617561,24.02604631,152.18,152.16,10.0]
[1748893617763,0.14216157,152.16,152.15,10.0]
[1748893617971,23.74172317,152.16,152.15,10.0]
[1748893618771,91.34,152.23,152.15,16.57246138]
[1748893619066,0.28432314,152.2,152.18,10.0]
[1748893619270,0.28432314,152.2,152.16,10.0]
[1748893619652,0.28432314,152.2,152.15,10.0]
[1748893619857,0.28432314,152.2,152.15,16.57243592]
[1748893620163,39.27132408,152.16,152.15,16.57243592]
[1748893620469,39.41348565,152.16,152.15,10.0]
[1748893621654,39.41348565,152.16,152.15,16.57246138]
[1748893621847,39.41348565,152.16,152.15,10.0]
[1748893622066,39.41348565,152.16,152.15,16.57246138]
[1748893622463,39.41348565,152.16,152.15,10.0]
[1748893622862,0.14216157,152.15,152.14,10.0]
[1748893623173,39.41348565,152.15,152.14,10.0]
[1748893623372,39.41348565,152.15,152.12,16.57366621]
[1748893623672,39.41348565,152.13,152.12,10.0]
[1748893624666,39.41348565,152.13,152.12,16.57375755]
[1748893624870,39.27132408,152.13,152.12,16.57375755]
[1748893627769,39.41348565,152.13,152.12,10.0]
[1748893628076,39.27132408,152.13,152.12,16.57375755]
[1748893628274,39.27132408,152.14,152.12,16.57375755]
[1748893628467,39.27132408,152.14,152.13,10.0]
[1748893628804,39.41348565,152.14,152.13,10.0]
[1748893629273,39.41348565,152.14,152.13,16.57332544]
[1748893629461,39.41348565,152.14,152.13,10.0]
[1748893629663,39.27132408,152.14,152.13,16.57332544]
[1748893631252,39.41348565,152.15,152.14,10.0]
[1748893631456,39.27132408,152.15,152.14,10.0]
[1748893633155,0.42648471,152.18,152.17,10.0]
[1748893633354,69.41348565,152.18,152.17,10.0]
[1748893633561,69.41348565,152.18,152.17,16.57159755]
[1748893633761,39.41348565,152.18,152.17,16.57159755]
[1748893635868,0.14216157,152.18,152.17,16.57159755]
[1748893636077,39.41348565,152.18,152.17,16.57159755]
[1748893636681,0.14216157,152.18,152.17,16.57159755]
[1748893636866,39.41348565,152.18,152.17,16.57159755]
[1748893639259,23.69973529,152.18,152.17,16.57159755]
[1748893639464,0.14216157,152.18,152.17,16.57159755]
[1748893639659,23.69973529,152.18,152.17,16.57159755]
[1748893643016,0.14216157,152.18,152.17,16.57159755]
[1748893643167,10.95621036,152.26,152.21,10.0]
[1748893643363,158.9818,152.28,152.23,10.0]
[1748893643364,18.64964886,152.25,152.23,10.0]
[1748893643563,29.6898166,152.26,152.23,10.0]
[1748893643813,26.0,152.26,152.24,10.0]
[1748893643959,0.42648471,152.25,152.24,10.0]
[1748893644364,0.42648471,152.25,152.23,16.56899559]
[1748893644564,0.42648471,152.25,152.24,10.0]
[1748893644769,0.42648471,152.25,152.23,10.0]
[1748893644992,0.42648471,152.25,152.24,10.0]
[1748893645167,0.42648471,152.25,152.23,10.0]
[1748893645972,0.42648471,152.24,152.23,10.0]
[1748893646173,23.98405843,152.24,152.23,10.0]
[1748893647469,23.98405843,152.24,152.23,16.56900742]
[1748893648380,23.98405843,152.24,152.23,10.0]
[1748893648986,23.98405843,152.24,152.18,39.98536629]
[1748893648987,42.63370729,152.24,152.21,10.0]
[1748893649174,42.63370729,152.24,152.23,10.0]
[1748893649175,0.42648471,152.24,152.23,10.0]
[1748893649377,23.98405843,152.24,152.23,10.0]
[1748893650297,23.69973529,152.24,152.23,10.0]
[1748893650778,23.69973529,152.24,152.23,16.56900742]
[1748893652280,0.14216157,152.24,152.23,16.56900742]
[1748893652487,0.42648471,152.26,152.25,10.0]
[1748893652798,23.98405843,152.26,152.25,10.0]
[1748893652984,23.98405843,152.26,152.25,16.56814449]
[1748893653376,23.98405843,152.26,152.25,10.0]
[1748893654483,23.98405843,152.26,152.25,16.56814449]
[1748893654780,23.69973529,152.26,152.25,16.56814449]
[1748893655896,23.69973529,152.26,152.25,10.0]
[1748893656280,23.69973529,152.26,152.25,16.56814449]
[1748893657193,0.14216157,152.26,152.25,16.56814449]
[1748893657492,23.69973529,152.26,152.25,16.56814449]
[1748893658576,0.42648471,152.28,152.27,10.0]
[1748893659993,23.98405843,152.28,152.27,10.0]
[1748893660398,42.63370729,152.28,152.26,10.0]
[1748893660576,42.20722258,152.27,152.24,10.0]
[1748893660780,23.98405843,152.25,152.24,10.0]
[1748893661801,0.42648471,152.24,152.22,10.0]
[1748893662099,23.98405843,152.23,152.22,10.0]
[1748893663599,23.98405843,152.23,152.22,16.56943896]
[1748893664011,23.98405843,152.23,152.22,10.0]
[1748893667495,23.98405843,152.23,152.2,10.0]
[1748893667496,0.42648471,152.22,152.2,10.0]
[1748893667715,23.98405843,152.21,152.2,10.0]
[1748893669311,23.98405843,152.21,152.2,16.57030223]
[1748893669617,0.42648471,152.21,152.2,16.57030223]
[1748893669815,23.98405843,152.21,152.2,16.57030223]
[1748893670497,23.98405843,152.21,152.2,10.0]
[1748893673098,23.98405843,152.21,152.2,16.57030223]
[1748893673716,0.28432314,152.23,152.2,16.57030223]
[1748893673925,23.55757372,152.24,152.23,10.0]
[1748893674904,23.69973529,152.24,152.23,16.56900742]
[1748893676016,0.14216157,152.24,152.23,16.56900742]
[1748893676332,23.69973529,152.24,152.23,16.56900742]
[1748893676517,0.14216157,152.24,152.23,16.56900742]
[1748893676730,23.69973529,152.24,152.23,16.56900742]
[1748893677218,24.09583529,152.24,152.23,16.56900742]
[1748893679724,24.07021408,152.24,152.23,10.0]
[1748893680516,24.35453722,152.24,152.23,10.0]
[1748893683435,24.35453722,152.24,152.23,16.56900742]
[1748893685046,23.35453722,152.24,152.23,16.56900742]
[1748893686734,23.35453722,152.24,152.23,10.0]
[1748893687045,23.78102193,152.24,152.23,10.0]
[1748893687413,27.48199839,152.24,152.23,10.0]
[1748893687620,23.78102193,152.24,152.23,10.0]
[1748893687834,27.48199839,152.24,152.23,10.0]
[1748893688014,23.78102193,152.24,152.23,10.0]
[1748893688215,27.48199839,152.24,152.23,10.0]
[1748893688417,23.78102193,152.24,152.23,10.0]
[1748893688636,23.78102193,152.24,152.21,6.56968035]
[1748893688637,0.14216157,152.23,152.22,10.0]
[1748893688857,23.69973529,152.23,152.22,10.0]
[1748893689721,23.69973529,152.23,152.22,16.56943896]
[1748893690230,23.69973529,152.23,152.22,10.0]
[1748893690430,23.69973529,152.23,152.22,16.56943896]
[1748893690833,0.14216157,152.23,152.22,16.56943896]
[1748893691035,23.69973529,152.23,152.22,16.56943896]
[1748893691235,23.69973529,152.23,152.22,10.0]
[1748893693244,42.63370729,152.23,152.22,10.0]
[1748893693422,0.14216157,152.22,152.21,10.0]
[1748893693626,23.69973529,152.22,152.21,16.56987057]
[1748893694156,3.70243743,152.24,152.23,10.0]
[1748893694448,22.778571,152.25,152.24,10.0]
[1748893694621,46.33614472,152.25,152.24,10.0]
[1748893695214,19.07613357,152.24,152.22,10.0]
[1748893695432,0.14216157,152.22,152.21,10.0]
[1748893695643,23.69973529,152.22,152.21,10.0]
[1748893696324,42.63370729,152.22,152.2,10.0]
[1748893696522,23.69973529,152.21,152.2,10.0]
[1748893697245,0.14216157,152.21,152.2,10.0]
[1748893697549,23.69973529,152.21,152.2,16.57030223]
[1748893697730,23.69973529,152.21,152.2,10.0]
[1748893698344,23.69973529,152.21,152.2,16.57030223]
[1748893699555,3.70195869,152.23,152.22,10.0]
[1748893699742,3.84412026,152.24,152.23,10.0]
[1748893700239,3.70195869,152.25,152.24,10.0]
[1748893700630,27.40169398,152.25,152.24,10.0]
[1748893701634,27.40080995,152.25,152.24,10.0]
[1748893702157,27.40080995,152.25,152.24,16.56857593]
[1748893702660,23.69973529,152.25,152.24,16.56857593]
[1748893702953,27.40091359,152.25,152.24,16.56857593]
[1748893703259,27.25875202,152.25,152.24,16.56857593]
[1748893703464,23.55757372,152.27,152.25,10.0]
[1748893703633,3.70065543,152.29,152.26,10.0]
[1748893703830,23.55757372,152.27,152.26,10.0]
[1748893704055,23.55757372,152.27,152.26,16.56771312]
[1748893705543,23.55757372,152.27,152.26,10.0]
[1748893705737,19.07613357,152.26,152.25,10.0]
[1748893705938,42.63370729,152.26,152.25,10.0]
[1748893706141,49.20142041,152.26,152.24,10.0]
[1748893706345,23.69973529,152.25,152.24,10.0]
[1748893709144,23.69973529,152.25,152.24,16.56857593]
[1748893709848,23.69973529,152.25,152.24,10.0]
[1748893712249,30.26787978,152.25,152.24,10.0]
[1748893712452,49.20185178,152.25,152.24,10.0]
[1748893712757,0.42648471,152.24,152.23,10.0]
[1748893712937,66.19128101,152.24,152.23,10.0]
[1748893713145,69.89058858,152.24,152.21,10.0]
[1748893714146,23.69973529,152.21,152.2,10.0]
[1748893715944,42.63370729,152.21,152.2,10.0]
[1748893716150,42.63370729,152.21,152.19,10.0]
[1748893716349,19.07613357,152.21,152.2,10.0]
[1748893716661,42.63370729,152.21,152.2,10.0]
[1748893717039,0.14216157,152.22,152.21,10.0]
[1748893717243,42.63370729,152.22,152.21,10.0]
[1748893718890,42.63370729,152.22,152.2,10.0]
[1748893719161,0.14216157,152.19,152.17,10.0]
[1748893719375,23.55757372,152.18,152.17,10.0]
[1748893724070,19.07613357,152.21,152.2,10.0]
[1748893724380,19.07613357,152.2,152.19,10.0]
[1748893724679,42.63370729,152.2,152.19,10.0]
[1748893728640,19.07613357,152.22,152.2,10.0]